[Event "*** MasterClass Titled Tuesday Blitz"]
[Site "Chess.com"]
[Date "2017.12.12"]
[Round "3"]
[White "Blitzstream"]
[Black "AquivaRubinstein"]
[Result "1/2-1/2"]
[WhiteElo "2487"]
[BlackElo "2266"]
[TimeControl "180+2"]
[EndTime "13:37:28 PST"]
[Termination "Game drawn - insufficient material"]

1. g4 {[%clk 0:03:01.9]} 1... d5 {[%clk 0:03:00]} 2. Bg2 {[%clk 0:03:00.5]} 2...
c6 {[%clk 0:03:00.7]} 3. g5 {[%clk 0:03:00]} 3... e5 {[%clk 0:02:58.2]} 4. d4
{[%clk 0:02:59.5]} 4... exd4 {[%clk 0:02:50.4]} 5. Qxd4 {[%clk 0:02:58.2]} 5...
Ne7 {[%clk 0:02:50.4]} 6. Nf3 {[%clk 0:02:58]} 6... Nf5 {[%clk 0:02:49.9]} 7.
Qe5+ {[%clk 0:02:58.5]} 7... Qe7 {[%clk 0:02:46.3]} 8. Bf4 {[%clk 0:02:56.6]}
8... Qxe5 {[%clk 0:02:46]} 9. Bxe5 {[%clk 0:02:57.8]} 9... Bd6 {[%clk
0:02:45.7]} 10. Nbd2 {[%clk 0:02:55.5]} 10... O-O {[%clk 0:02:45.2]} 11. O-O-O
{[%clk 0:02:53.7]} 11... Re8 {[%clk 0:02:43.4]} 12. Bxd6 {[%clk 0:02:49.8]}
12... Nxd6 {[%clk 0:02:44.3]} 13. Rhe1 {[%clk 0:02:51.2]} 13... Bg4 {[%clk
0:02:38.2]} 14. h3 {[%clk 0:02:42.8]} 14... Bh5 {[%clk 0:02:38.3]} 15. e4 {[%clk
0:02:35.9]} 15... Nxe4 {[%clk 0:02:07.4]} 16. Nxe4 {[%clk 0:02:35.3]} 16... dxe4
{[%clk 0:02:08.6]} 17. Rxe4 {[%clk 0:02:34]} 17... Na6 {[%clk 0:02:09.1]} 18.
Rde1 {[%clk 0:01:40.9]} 18... Rxe4 {[%clk 0:02:02.7]} 19. Rxe4 {[%clk
0:01:42.8]} 19... Kf8 {[%clk 0:02:04.3]} 20. Ne5 {[%clk 0:01:43.3]} 20... Rd8
{[%clk 0:02:00.7]} 21. f3 {[%clk 0:01:37.7]} 21... Nc5 {[%clk 0:01:46.1]} 22.
Rh4 {[%clk 0:01:28.5]} 22... g6 {[%clk 0:01:15.4]} 23. Rf4 {[%clk 0:01:25.8]}
23... Rd5 {[%clk 0:00:34]} 24. Nxf7 {[%clk 0:01:15]} 24... Ke7 {[%clk
0:00:27.4]} 25. h4 {[%clk 0:01:01.6]} 25... Ne6 {[%clk 0:00:21.8]} 26. Rf6
{[%clk 0:01:02.2]} 26... Rd4 {[%clk 0:00:18.5]} 27. Ne5 {[%clk 0:00:48.1]} 27...
Rxh4 {[%clk 0:00:18.8]} 28. Rf7+ {[%clk 0:00:49.1]} 28... Kd6 {[%clk 0:00:20.1]}
29. Nd3 {[%clk 0:00:39.5]} 29... Rh2 {[%clk 0:00:20.5]} 30. Ne1 {[%clk
0:00:22.8]} 30... Nxg5 {[%clk 0:00:21.4]} 31. Rxb7 {[%clk 0:00:22.8]} 31... a5
{[%clk 0:00:15.5]} 32. f4 {[%clk 0:00:20.1]} 32... Ne6 {[%clk 0:00:13.8]} 33.
Rxh7 {[%clk 0:00:20.5]} 33... Nxf4 {[%clk 0:00:13.4]} 34. Bf3 {[%clk 0:00:12.9]}
34... Rf2 {[%clk 0:00:07.7]} 35. Bxh5 {[%clk 0:00:13]} 35... gxh5 {[%clk
0:00:09.3]} 36. Nd3 {[%clk 0:00:13.7]} 36... Nxd3+ {[%clk 0:00:07.1]} 37. cxd3
{[%clk 0:00:15.6]} 37... Rh2 {[%clk 0:00:08.6]} 38. Ra7 {[%clk 0:00:16.6]} 38...
h4 {[%clk 0:00:08.8]} 39. Rxa5 {[%clk 0:00:18.1]} 39... h3 {[%clk 0:00:10.2]}
40. Rh5 {[%clk 0:00:19.1]} 40... Rh1+ {[%clk 0:00:10.6]} 41. Kc2 {[%clk
0:00:20.3]} 41... Rh2+ {[%clk 0:00:11.6]} 42. Kb3 {[%clk 0:00:21.2]} 42... Rh1
{[%clk 0:00:13]} 43. a4 {[%clk 0:00:21.3]} 43... Kc7 {[%clk 0:00:14.2]} 44. a5
{[%clk 0:00:21.8]} 44... Kb7 {[%clk 0:00:15.3]} 45. Kb4 {[%clk 0:00:23.1]} 45...
Rb1 {[%clk 0:00:11.9]} 46. b3 {[%clk 0:00:24.2]} 46... Rh1 {[%clk 0:00:12.6]}
47. Kc5 {[%clk 0:00:21]} 47... h2 {[%clk 0:00:11.3]} 48. Kd4 {[%clk 0:00:18.8]}
48... Rb1 {[%clk 0:00:09.8]} 49. Rxh2 {[%clk 0:00:18.8]} 49... Rxb3 {[%clk
0:00:11.4]} 50. Ra2 {[%clk 0:00:20.1]} 50... Ka6 {[%clk 0:00:11.7]} 51. Kc4
{[%clk 0:00:17.2]} 51... Rb1 {[%clk 0:00:11.5]} 52. Kc5 {[%clk 0:00:15.8]} 52...
Rc1+ {[%clk 0:00:10.6]} 53. Kd6 {[%clk 0:00:15.3]} 53... c5 {[%clk 0:00:11.8]}
54. Ra3 {[%clk 0:00:14.7]} 54... c4 {[%clk 0:00:11.2]} 55. d4 {[%clk 0:00:16.1]}
55... c3 {[%clk 0:00:12.5]} 56. d5 {[%clk 0:00:17.5]} 56... c2 {[%clk
0:00:08.8]} 57. Rc3 {[%clk 0:00:18.5]} 57... Kxa5 {[%clk 0:00:09.3]} 58. Kc6
{[%clk 0:00:19.3]} 58... Kb4 {[%clk 0:00:08.7]} 59. Rc5 {[%clk 0:00:19.9]} 59...
Kb3 {[%clk 0:00:08]} 60. d6 {[%clk 0:00:19.1]} 60... Rd1 {[%clk 0:00:08.8]} 61.
d7 {[%clk 0:00:15.6]} 61... c1=Q {[%clk 0:00:08.2]} 62. Rxc1 {[%clk 0:00:17.5]}
62... Rxc1+ {[%clk 0:00:08.2]} 63. Kb7 {[%clk 0:00:19.1]} 63... Rd1 {[%clk
0:00:09.3]} 64. Kc8 {[%clk 0:00:20.7]} 64... Kc4 {[%clk 0:00:10.5]} 65. d8=Q
{[%clk 0:00:22.2]} 65... Rxd8+ {[%clk 0:00:11.5]} 66. Kxd8 {[%clk 0:00:24.1]}
1/2-1/2

[Event "*** MasterClass Titled Tuesday Blitz"]
[Site "Chess.com"]
[Date "2017.12.12"]
[Round "3"]
[White "BjarkeSahl"]
[Black "marreta84"]
[Result "1/2-1/2"]
[WhiteElo "2226"]
[BlackElo "2314"]
[TimeControl "180+2"]
[EndTime "13:37:28 PST"]
[Termination "Game drawn by stalemate"]

1. e4 {[%clk 0:03:01.9]} 1... c5 {[%clk 0:03:00.6]} 2. Nf3 {[%clk 0:03:01.9]}
2... e6 {[%clk 0:03:01.6]} 3. d4 {[%clk 0:03:02.1]} 3... cxd4 {[%clk 0:03:03.1]}
4. Nxd4 {[%clk 0:03:03.7]} 4... Nf6 {[%clk 0:03:03.2]} 5. Nc3 {[%clk 0:03:04.3]}
5... Nc6 {[%clk 0:03:04.7]} 6. Ndb5 {[%clk 0:02:59.9]} 6... Bc5 {[%clk
0:03:04.5]} 7. Be3 {[%clk 0:02:58.4]} 7... Bxe3 {[%clk 0:02:38.5]} 8. Nd6+
{[%clk 0:02:20.6]} 8... Ke7 {[%clk 0:02:34.9]} 9. fxe3 {[%clk 0:02:22]} 9... Qb6
{[%clk 0:02:25.6]} 10. Nc4 {[%clk 0:02:21.9]} 10... Qc5 {[%clk 0:02:26.3]} 11.
Na4 {[%clk 0:02:04.1]} 11... Qg5 {[%clk 0:02:05.2]} 12. Qd6+ {[%clk 0:02:02.9]}
12... Kd8 {[%clk 0:01:56.2]} 13. h4 {[%clk 0:01:39.4]} 13... Qg6 {[%clk
0:01:42.5]} 14. Nc3 {[%clk 0:01:14.7]} 14... Nxe4 {[%clk 0:01:36.5]} 15. Nxe4
{[%clk 0:01:09.2]} 15... Qxe4 {[%clk 0:01:38.4]} 16. O-O-O {[%clk 0:01:09.8]}
16... Qf5 {[%clk 0:00:57.1]} 17. Be2 {[%clk 0:00:53]} 17... Qf6 {[%clk
0:00:58.5]} 18. Rhf1 {[%clk 0:00:52.2]} 18... Qe7 {[%clk 0:00:59]} 19. Bf3
{[%clk 0:00:46.5]} 19... Qxd6 {[%clk 0:00:56]} 20. Nxd6 {[%clk 0:00:47.1]} 20...
Rf8 {[%clk 0:00:44.7]} 21. Bxc6 {[%clk 0:00:25.3]} 21... bxc6 {[%clk 0:00:46.6]}
22. Nxf7+ {[%clk 0:00:26.8]} 22... Ke7 {[%clk 0:00:47.6]} 23. Ne5 {[%clk
0:00:27.7]} 23... Rf6 {[%clk 0:00:33.9]} 24. g4 {[%clk 0:00:26.2]} 24... Ba6
{[%clk 0:00:10.8]} 25. Rf4 {[%clk 0:00:25.9]} 25... Rxf4 {[%clk 0:00:10.2]} 26.
exf4 {[%clk 0:00:26.9]} 26... Rd8 {[%clk 0:00:09]} 27. c4 {[%clk 0:00:25.3]}
27... Bb7 {[%clk 0:00:10.2]} 28. c5 {[%clk 0:00:26.3]} 28... d5 {[%clk
0:00:10.7]} 29. cxd6+ {[%clk 0:00:26.9]} 29... Rxd6 {[%clk 0:00:12.6]} 30. Rxd6
{[%clk 0:00:26.8]} 30... Kxd6 {[%clk 0:00:14.5]} 31. Nf7+ {[%clk 0:00:27.4]}
31... Kd5 {[%clk 0:00:15.5]} 32. Kd2 {[%clk 0:00:27.5]} 32... Ke4 {[%clk
0:00:15.3]} 33. Ng5+ {[%clk 0:00:28.5]} 33... Kxf4 {[%clk 0:00:16.8]} 34. Nxe6+
{[%clk 0:00:30.4]} 34... Kxg4 {[%clk 0:00:17.7]} 35. Nxg7 {[%clk 0:00:31.7]}
35... Kxh4 {[%clk 0:00:18.6]} 36. Ke3 {[%clk 0:00:33.2]} 36... Kg3 {[%clk
0:00:17.3]} 37. Nf5+ {[%clk 0:00:31.8]} 37... Kg4 {[%clk 0:00:18.6]} 38. Nd6
{[%clk 0:00:30.1]} 38... Ba6 {[%clk 0:00:18.9]} 39. Kf2 {[%clk 0:00:27.8]} 39...
h5 {[%clk 0:00:19.2]} 40. b4 {[%clk 0:00:24.9]} 40... h4 {[%clk 0:00:19.4]} 41.
Kg2 {[%clk 0:00:25.2]} 41... Kf4 {[%clk 0:00:19]} 42. a4 {[%clk 0:00:25.9]}
42... Ke5 {[%clk 0:00:18.7]} 43. Nf7+ {[%clk 0:00:16.9]} 43... Kd4 {[%clk
0:00:18.6]} 44. Nd8 {[%clk 0:00:16.7]} 44... Kd5 {[%clk 0:00:16.4]} 45. Kh3
{[%clk 0:00:18.1]} 45... Bc4 {[%clk 0:00:15.7]} 46. Kxh4 {[%clk 0:00:18.4]}
46... Bb3 {[%clk 0:00:16.6]} 47. a5 {[%clk 0:00:11.3]} 47... Ba4 {[%clk
0:00:17.8]} 48. Kg5 {[%clk 0:00:12.1]} 48... Kc4 {[%clk 0:00:18.6]} 49. Kf4
{[%clk 0:00:13.5]} 49... Kxb4 {[%clk 0:00:19.5]} 50. Ke3 {[%clk 0:00:08.4]}
50... Kxa5 {[%clk 0:00:20.6]} 51. Kd2 {[%clk 0:00:09.5]} 51... Kb4 {[%clk
0:00:22.1]} 52. Nxc6+ {[%clk 0:00:10.2]} 52... Bxc6 {[%clk 0:00:20.8]} 53. Kc2
{[%clk 0:00:11.8]} 53... Ka3 {[%clk 0:00:21.9]} 54. Kb1 {[%clk 0:00:13.2]} 54...
Kb3 {[%clk 0:00:21.1]} 55. Ka1 {[%clk 0:00:15.1]} 55... Bb5 {[%clk 0:00:18.5]}
56. Kb1 {[%clk 0:00:16.2]} 56... Ka3 {[%clk 0:00:19]} 57. Ka1 {[%clk 0:00:17.5]}
57... Ba4 {[%clk 0:00:20]} 58. Kb1 {[%clk 0:00:18.9]} 58... Bb3 {[%clk
0:00:21.4]} 59. Ka1 {[%clk 0:00:20.4]} 59... Kb4 {[%clk 0:00:10.6]} 60. Kb1
{[%clk 0:00:21.2]} 60... Kc3 {[%clk 0:00:11]} 61. Ka1 {[%clk 0:00:22.5]} 61...
Bc2 {[%clk 0:00:07.5]} 62. Ka2 {[%clk 0:00:23.6]} 62... Kd2 {[%clk 0:00:07.6]}
63. Ka1 {[%clk 0:00:23.7]} 63... Kc1 {[%clk 0:00:08.4]} 64. Ka2 {[%clk 0:00:25]}
64... Bd1 {[%clk 0:00:08.7]} 65. Ka1 {[%clk 0:00:26.6]} 65... Bb3 {[%clk
0:00:08.7]} 1/2-1/2

[Event "*** MasterClass Titled Tuesday Blitz"]
[Site "Chess.com"]
[Date "2017.12.12"]
[Round "3"]
[White "lukas_111111"]
[Black "tigra"]
[Result "0-1"]
[WhiteElo "2447"]
[BlackElo "2637"]
[TimeControl "180+2"]
[EndTime "13:38:07 PST"]
[Termination "tigra won by resignation"]

1. e4 {[%clk 0:03:01.9]} 1... e6 {[%clk 0:02:52.5]} 2. d4 {[%clk 0:03:01.9]}
2... d5 {[%clk 0:02:54.4]} 3. Nc3 {[%clk 0:03:02.3]} 3... Bb4 {[%clk 0:02:53.6]}
4. e5 {[%clk 0:03:03.1]} 4... c5 {[%clk 0:02:53.9]} 5. a3 {[%clk 0:03:04.3]}
5... Bxc3+ {[%clk 0:02:55.4]} 6. bxc3 {[%clk 0:03:05.5]} 6... Ne7 {[%clk
0:02:57.1]} 7. Qg4 {[%clk 0:03:06.6]} 7... O-O {[%clk 0:02:57.5]} 8. Bd3 {[%clk
0:03:04.8]} 8... f5 {[%clk 0:02:56.6]} 9. exf6 {[%clk 0:03:05.5]} 9... Rxf6
{[%clk 0:02:57.8]} 10. Bg5 {[%clk 0:03:07.1]} 10... Rf7 {[%clk 0:02:58.9]} 11.
Qh5 {[%clk 0:03:08.4]} 11... h6 {[%clk 0:02:59.2]} 12. Nf3 {[%clk 0:03:03.6]}
12... Nd7 {[%clk 0:02:37.5]} 13. Bh7+ {[%clk 0:02:53]} 13... Kf8 {[%clk
0:02:36]} 14. Bg6 {[%clk 0:02:44.9]} 14... Nf6 {[%clk 0:02:36.5]} 15. Bxf6
{[%clk 0:02:43.9]} 15... Rxf6 {[%clk 0:02:37.8]} 16. Ne5 {[%clk 0:02:42.8]}
16... Qa5 {[%clk 0:02:35.5]} 17. O-O {[%clk 0:02:33.1]} 17... Qxc3 {[%clk
0:02:36.5]} 18. dxc5 {[%clk 0:02:20]} 18... Qxc5 {[%clk 0:02:28.3]} 19. c4
{[%clk 0:02:16.7]} 19... Qd6 {[%clk 0:02:21.4]} 20. Rac1 {[%clk 0:02:06.8]}
20... b6 {[%clk 0:02:18.8]} 21. cxd5 {[%clk 0:01:59.4]} 21... exd5 {[%clk
0:02:19.5]} 22. Bd3 {[%clk 0:01:44.6]} 22... Bf5 {[%clk 0:02:19.5]} 23. Rfe1
{[%clk 0:01:34.4]} 23... Bxd3 {[%clk 0:02:12.3]} 24. Nxd3 {[%clk 0:01:35]} 24...
Rf5 {[%clk 0:01:31.1]} 25. Qg4 {[%clk 0:01:32.5]} 25... Qf6 {[%clk 0:01:28.1]}
26. h3 {[%clk 0:01:12.2]} 26... Rc8 {[%clk 0:01:10.8]} 27. Rxc8+ {[%clk
0:01:00]} 27... Nxc8 {[%clk 0:01:12.7]} 28. Nf4 {[%clk 0:00:58.6]} 28... Ne7
{[%clk 0:01:10.2]} 29. Ne6+ {[%clk 0:00:54.3]} 29... Kf7 {[%clk 0:01:10.9]} 30.
Nd8+ {[%clk 0:00:42.9]} 30... Kg8 {[%clk 0:01:11.6]} 31. Re6 {[%clk 0:00:32]}
31... Qf8 {[%clk 0:00:38]} 32. Nc6 {[%clk 0:00:27.2]} 32... Nxc6 {[%clk
0:00:37.4]} 33. Rxc6 {[%clk 0:00:28.3]} 33... Qf7 {[%clk 0:00:27.7]} 34. f3
{[%clk 0:00:19.9]} 34... Kh7 {[%clk 0:00:27.2]} 35. Qd4 {[%clk 0:00:19.4]} 35...
Qd7 {[%clk 0:00:23.9]} 36. Rc3 {[%clk 0:00:16.9]} 36... Rf6 {[%clk 0:00:24]} 37.
Rd3 {[%clk 0:00:15.4]} 37... Rd6 {[%clk 0:00:24]} 38. h4 {[%clk 0:00:14.1]}
38... Qf5 {[%clk 0:00:23.2]} 39. Re3 {[%clk 0:00:13.5]} 39... Qf6 {[%clk
0:00:21.4]} 40. Qd3+ {[%clk 0:00:14.1]} 40... Qg6 {[%clk 0:00:22.5]} 41. Qd4
{[%clk 0:00:15.3]} 41... a6 {[%clk 0:00:21.9]} 42. Re7 {[%clk 0:00:13.9]} 42...
Qg3 {[%clk 0:00:22.1]} 43. h5 {[%clk 0:00:10.8]} 43... Qg5 {[%clk 0:00:21.2]}
44. Qd3+ {[%clk 0:00:11.3]} 44... Kg8 {[%clk 0:00:22.2]} 45. Qe2 {[%clk
0:00:07.5]} 45... Qxh5 {[%clk 0:00:20.3]} 46. Re8+ {[%clk 0:00:08.3]} 46... Kh7
{[%clk 0:00:21.3]} 47. Qe7 {[%clk 0:00:06.4]} 47... Qg6 {[%clk 0:00:20.9]} 48.
Rc8 {[%clk 0:00:05.4]} 48... Qf6 {[%clk 0:00:21.4]} 49. Qe8 {[%clk 0:00:05.8]}
49... d4 {[%clk 0:00:21.8]} 50. Qg8+ {[%clk 0:00:05.3]} 50... Kg6 {[%clk
0:00:22.8]} 51. f4 {[%clk 0:00:04.1]} 51... Qxf4 {[%clk 0:00:22.9]} 52. Qe8+
{[%clk 0:00:04.5]} 52... Qf7 {[%clk 0:00:23.6]} 53. Qe4+ {[%clk 0:00:05.4]}
53... Qf5 {[%clk 0:00:25]} 54. Qe8+ {[%clk 0:00:04.9]} 54... Kg5 {[%clk
0:00:24.7]} 55. Rc7 {[%clk 0:00:05]} 55... g6 {[%clk 0:00:21.6]} 56. Qe7+ {[%clk
0:00:02.5]} 56... Rf6 {[%clk 0:00:21.6]} 57. Rc6 {[%clk 0:00:03]} 57... Qf1+
{[%clk 0:00:20.6]} 58. Kh2 {[%clk 0:00:04.1]} 58... Qf4+ {[%clk 0:00:22.5]} 59.
g3 {[%clk 0:00:05.3]} 59... Qf2+ {[%clk 0:00:22.8]} 60. Kh3 {[%clk 0:00:06.7]}
60... Qf5+ {[%clk 0:00:23.6]} 61. Kh2 {[%clk 0:00:07.9]} 61... h5 {[%clk
0:00:22.2]} 62. Rd6 {[%clk 0:00:07.7]} 62... b5 {[%clk 0:00:20.7]} 63. Rxd4
{[%clk 0:00:08]} 63... Kh6 {[%clk 0:00:20.7]} 64. Rf4 {[%clk 0:00:08.6]} 64...
Qc2+ {[%clk 0:00:20.9]} 65. Kh3 {[%clk 0:00:09.7]} 65... Rxf4 {[%clk 0:00:22.2]}
66. gxf4 {[%clk 0:00:10.4]} 66... Qf5+ {[%clk 0:00:23.7]} 67. Kg2 {[%clk
0:00:07.2]} 67... Qg4+ {[%clk 0:00:24.6]} 68. Kh1 {[%clk 0:00:08.4]} 68... Qf3+
{[%clk 0:00:25.1]} 69. Kg1 {[%clk 0:00:08.7]} 69... Qg3+ {[%clk 0:00:26.3]} 70.
Kh1 {[%clk 0:00:09.4]} 70... Qxf4 {[%clk 0:00:27.3]} 71. Qd8 {[%clk 0:00:08.5]}
71... h4 {[%clk 0:00:26.3]} 72. Qh8+ {[%clk 0:00:08.9]} 72... Kg5 {[%clk
0:00:27.5]} 73. Qd8+ {[%clk 0:00:09.3]} 73... Kg4 {[%clk 0:00:28.7]} 74. Qd1+
{[%clk 0:00:09.7]} 74... Qf3+ {[%clk 0:00:29.7]} 0-1

[Event "*** MasterClass Titled Tuesday Blitz"]
[Site "Chess.com"]
[Date "2017.12.12"]
[Round "3"]
[White "jbj"]
[Black "chessking2151"]
[Result "0-1"]
[WhiteElo "2251"]
[BlackElo "2363"]
[TimeControl "180+2"]
[EndTime "13:39:15 PST"]
[Termination "chessking2151 won on time"]

1. e4 {[%clk 0:03:01.9]} 1... e5 {[%clk 0:03:00.5]} 2. Nf3 {[%clk 0:03:02.5]}
2... Nc6 {[%clk 0:03:02]} 3. Bc4 {[%clk 0:03:02.2]} 3... Nf6 {[%clk 0:03:02.7]}
4. d3 {[%clk 0:03:03.2]} 4... Be7 {[%clk 0:03:03.9]} 5. c3 {[%clk 0:03:03.9]}
5... O-O {[%clk 0:03:05.1]} 6. Bb3 {[%clk 0:03:05.2]} 6... d6 {[%clk 0:03:06.2]}
7. Nbd2 {[%clk 0:03:06.4]} 7... Na5 {[%clk 0:03:06.1]} 8. Bc2 {[%clk 0:03:07.3]}
8... c5 {[%clk 0:03:07.7]} 9. Nf1 {[%clk 0:03:08.6]} 9... Re8 {[%clk 0:03:07.1]}
10. Ng3 {[%clk 0:03:09.8]} 10... b5 {[%clk 0:03:06.8]} 11. O-O {[%clk
0:03:08.6]} 11... Nc6 {[%clk 0:03:07.1]} 12. h3 {[%clk 0:03:01.6]} 12... b4
{[%clk 0:03:01.5]} 13. Ba4 {[%clk 0:03:00.4]} 13... Bd7 {[%clk 0:03:00.4]} 14.
d4 {[%clk 0:02:49.9]} 14... Qc7 {[%clk 0:02:24.5]} 15. d5 {[%clk 0:02:44.9]}
15... Nb8 {[%clk 0:02:19.7]} 16. Bxd7 {[%clk 0:02:44.9]} 16... Nbxd7 {[%clk
0:02:20.1]} 17. c4 {[%clk 0:02:31.5]} 17... a5 {[%clk 0:02:10.9]} 18. a4 {[%clk
0:02:26]} 18... bxa3 {[%clk 0:02:11.4]} 19. Rxa3 {[%clk 0:02:27]} 19... Reb8
{[%clk 0:02:11.9]} 20. Nf5 {[%clk 0:02:21.8]} 20... Bf8 {[%clk 0:02:11.9]} 21.
Re1 {[%clk 0:02:19]} 21... Nb6 {[%clk 0:01:51.4]} 22. Qc2 {[%clk 0:02:13.4]}
22... Ne8 {[%clk 0:01:29.2]} 23. Bd2 {[%clk 0:02:11]} 23... a4 {[%clk
0:01:26.9]} 24. Ne3 {[%clk 0:01:49.5]} 24... g6 {[%clk 0:01:24.5]} 25. g4 {[%clk
0:01:41.4]} 25... Qd7 {[%clk 0:01:08.8]} 26. Kg2 {[%clk 0:01:39.8]} 26... Nc7
{[%clk 0:01:04.9]} 27. h4 {[%clk 0:01:18.2]} 27... Na6 {[%clk 0:00:38.7]} 28.
Rg1 {[%clk 0:01:18.9]} 28... Nb4 {[%clk 0:00:38.7]} 29. Qd1 {[%clk 0:01:13]}
29... Bh6 {[%clk 0:00:33.6]} 30. g5 {[%clk 0:01:13.7]} 30... Bg7 {[%clk
0:00:33.7]} 31. Kf1 {[%clk 0:01:15]} 31... Qh3+ {[%clk 0:00:29.4]} 32. Ke2
{[%clk 0:01:14.9]} 32... Qd7 {[%clk 0:00:20.7]} 33. Rh1 {[%clk 0:01:12.6]} 33...
h5 {[%clk 0:00:21]} 34. gxh6 {[%clk 0:01:13.5]} 34... Bxh6 {[%clk 0:00:22.3]}
35. Ng5 {[%clk 0:01:12.7]} 35... Bxg5 {[%clk 0:00:16.8]} 36. hxg5 {[%clk
0:01:14.6]} 36... Kg7 {[%clk 0:00:18.5]} 37. Qg1 {[%clk 0:01:12.8]} 37... Rh8
{[%clk 0:00:19.2]} 38. Rh6 {[%clk 0:01:13.8]} 38... Rxh6 {[%clk 0:00:18.1]} 39.
gxh6+ {[%clk 0:01:15.1]} 39... Kh7 {[%clk 0:00:19.7]} 40. Ng4 {[%clk 0:01:14.5]}
40... Qe7 {[%clk 0:00:19.4]} 41. Rf3 {[%clk 0:01:13.7]} 41... Nd7 {[%clk
0:00:16.2]} 42. Qg3 {[%clk 0:01:05.6]} 42... Nc2 {[%clk 0:00:16.7]} 43. Kf1
{[%clk 0:01:04.5]} 43... Nd4 {[%clk 0:00:17.4]} 44. Ra3 {[%clk 0:01:05.9]} 44...
Rb8 {[%clk 0:00:17.9]} 45. Bc1 {[%clk 0:01:05.1]} 45... Rb3 {[%clk 0:00:17.6]}
46. Rxb3 {[%clk 0:01:06.3]} 46... axb3 {[%clk 0:00:19.1]} 47. Be3 {[%clk
0:01:04.8]} 47... f5 {[%clk 0:00:14.8]} 48. exf5 {[%clk 0:01:03.9]} 48... gxf5
{[%clk 0:00:16.7]} 49. Bxd4 {[%clk 0:01:01.9]} 49... cxd4 {[%clk 0:00:15.9]} 50.
Nh2 {[%clk 0:01:02.9]} 50... Nc5 {[%clk 0:00:14.7]} 51. Nf3 {[%clk 0:00:58.9]}
51... Qf6 {[%clk 0:00:13.7]} 52. Ng5+ {[%clk 0:00:59.9]} 52... Kxh6 {[%clk
0:00:15]} 53. Nf3 {[%clk 0:00:55.1]} 53... e4 {[%clk 0:00:11]} 54. Qh3+ {[%clk
0:00:54.8]} 54... Kg7 {[%clk 0:00:11.7]} 55. Nd2 {[%clk 0:00:55.6]} 55... d3
{[%clk 0:00:11.6]} 56. Qg3+ {[%clk 0:00:55.2]} 56... Kf7 {[%clk 0:00:12.5]} 57.
Qh3 {[%clk 0:00:54.1]} 57... Qg5 {[%clk 0:00:12.6]} 58. Qh7+ {[%clk 0:00:54.9]}
58... Kf8 {[%clk 0:00:13.5]} 59. Qh8+ {[%clk 0:00:55.3]} 59... Kf7 {[%clk
0:00:13.2]} 60. Qh7+ {[%clk 0:00:53.5]} 60... Kf6 {[%clk 0:00:14]} 61. Qh8+
{[%clk 0:00:51.2]} 61... Qg7 {[%clk 0:00:12.1]} 62. Qd8+ {[%clk 0:00:49.8]}
62... Qe7 {[%clk 0:00:12.7]} 63. Qb8 {[%clk 0:00:49.2]} 63... e3 {[%clk
0:00:11.8]} 64. fxe3 {[%clk 0:00:49.9]} 64... Qxe3 {[%clk 0:00:12.4]} 65. Qxd6+
{[%clk 0:00:50.7]} 65... Kg7 {[%clk 0:00:09.8]} 66. Qc7+ {[%clk 0:00:50.6]}
66... Kh6 {[%clk 0:00:10.2]} 67. Qh2+ {[%clk 0:00:50.8]} 67... Kg7 {[%clk
0:00:10.1]} 68. Qg2+ {[%clk 0:00:50.6]} 68... Kf7 {[%clk 0:00:09.3]} 69. Qh2
{[%clk 0:00:45.5]} 69... Ne4 {[%clk 0:00:06.8]} 70. Nxe4 {[%clk 0:00:43.5]}
70... Qxe4 {[%clk 0:00:04.5]} 71. Qh7+ {[%clk 0:00:43.2]} 71... Kf6 {[%clk
0:00:05.9]} 72. Qh6+ {[%clk 0:00:43.6]} 72... Kf7 {[%clk 0:00:07.4]} 73. Qh5+
{[%clk 0:00:41.8]} 73... Kg7 {[%clk 0:00:08]} 74. Qg5+ {[%clk 0:00:41.8]} 74...
Kf8 {[%clk 0:00:09.4]} 75. Qf6+ {[%clk 0:00:42.4]} 75... Kg8 {[%clk 0:00:10.4]}
76. Qd8+ {[%clk 0:00:42.8]} 76... Kg7 {[%clk 0:00:11.6]} 77. Qc7+ {[%clk
0:00:44]} 77... Kf6 {[%clk 0:00:12.6]} 78. Qb6+ {[%clk 0:00:44.3]} 78... Kg5
{[%clk 0:00:13.4]} 79. Qg1+ {[%clk 0:00:39.1]} 79... Kf6 {[%clk 0:00:07.9]} 80.
Qb6+ {[%clk 0:00:39.1]} 80... Kg5 {[%clk 0:00:08.2]} 81. Qd8+ {[%clk 0:00:37.5]}
81... Kg4 {[%clk 0:00:05.7]} 82. Qg8+ {[%clk 0:00:35.8]} 82... Kf4 {[%clk
0:00:06.4]} 83. Qb8+ {[%clk 0:00:36.5]} 83... Ke3 {[%clk 0:00:06.9]} 84. Qg3+
{[%clk 0:00:30]} 84... Kd2 {[%clk 0:00:08]} 85. Qg5+ {[%clk 0:00:19.5]} 85...
Kc2 {[%clk 0:00:08.1]} 86. d6 {[%clk 0:00:07.8]} 86... d2 {[%clk 0:00:07.3]} 0-1

[Event "*** MasterClass Titled Tuesday Blitz"]
[Site "Chess.com"]
[Date "2017.12.12"]
[Round "4"]
[White "tigra"]
[Black "bugsbunny444"]
[Result "1-0"]
[WhiteElo "2642"]
[BlackElo "2438"]
[TimeControl "180+2"]
[EndTime "13:47:30 PST"]
[Termination "tigra won by resignation"]

1. e4 {[%clk 0:03:01.9]} 1... e6 {[%clk 0:03:00.7]} 2. d4 {[%clk 0:03:02.7]}
2... d5 {[%clk 0:03:01.9]} 3. Nc3 {[%clk 0:03:04.2]} 3... Nf6 {[%clk 0:03:02.9]}
4. Bg5 {[%clk 0:03:04.1]} 4... Bb4 {[%clk 0:03:03.6]} 5. e5 {[%clk 0:03:04.6]}
5... h6 {[%clk 0:03:05]} 6. Bc1 {[%clk 0:03:06]} 6... Nfd7 {[%clk 0:03:05]} 7.
a3 {[%clk 0:03:06.4]} 7... Bf8 {[%clk 0:03:05.8]} 8. f4 {[%clk 0:03:05.1]} 8...
c5 {[%clk 0:03:06.6]} 9. Nf3 {[%clk 0:03:06.8]} 9... Nc6 {[%clk 0:03:07.9]} 10.
Be3 {[%clk 0:03:08.4]} 10... cxd4 {[%clk 0:03:09.1]} 11. Nxd4 {[%clk 0:03:09.1]}
11... Bc5 {[%clk 0:03:10.7]} 12. Qd3 {[%clk 0:03:09.1]} 12... Ndxe5 {[%clk
0:02:45.6]} 13. fxe5 {[%clk 0:03:03.6]} 13... Nxd4 {[%clk 0:02:46.7]} 14. O-O-O
{[%clk 0:02:55.5]} 14... Bd7 {[%clk 0:01:43.2]} 15. Bxd4 {[%clk 0:02:54.2]}
15... Bxd4 {[%clk 0:01:44.5]} 16. Qxd4 {[%clk 0:02:54.9]} 16... Qg5+ {[%clk
0:01:41.9]} 17. Kb1 {[%clk 0:02:55.3]} 17... O-O {[%clk 0:01:42.8]} 18. h4
{[%clk 0:02:54.3]} 18... Qe7 {[%clk 0:01:38.9]} 19. g4 {[%clk 0:02:52.6]} 19...
b5 {[%clk 0:01:30.2]} 20. Bxb5 {[%clk 0:02:47.8]} 20... Rab8 {[%clk 0:01:26.9]}
21. Qxa7 {[%clk 0:02:46.2]} 1-0

[Event "*** MasterClass Titled Tuesday Blitz"]
[Site "Chess.com"]
[Date "2017.12.12"]
[Round "4"]
[White "Schemato"]
[Black "lukas_111111"]
[Result "0-1"]
[WhiteElo "2304"]
[BlackElo "2452"]
[TimeControl "180+2"]
[EndTime "13:47:33 PST"]
[Termination "lukas_111111 won by resignation"]

1. c4 {[%clk 0:03:01.9]} 1... e5 {[%clk 0:03:00]} 2. g3 {[%clk 0:03:00.8]} 2...
c6 {[%clk 0:02:59.2]} 3. d4 {[%clk 0:03:01]} 3... e4 {[%clk 0:02:58.9]} 4. Nc3
{[%clk 0:03:01.2]} 4... d5 {[%clk 0:03:00]} 5. Bf4 {[%clk 0:02:40.4]} 5... Nf6
{[%clk 0:02:57.2]} 6. e3 {[%clk 0:02:40.3]} 6... Nbd7 {[%clk 0:02:52.6]} 7. h4
{[%clk 0:02:36.6]} 7... a6 {[%clk 0:02:45.1]} 8. Nh3 {[%clk 0:02:32.8]} 8... h6
{[%clk 0:02:35.3]} 9. cxd5 {[%clk 0:02:27.3]} 9... cxd5 {[%clk 0:02:34.8]} 10.
Qb3 {[%clk 0:02:26.2]} 10... Nb6 {[%clk 0:02:32.1]} 11. Be5 {[%clk 0:02:23.6]}
11... Ng4 {[%clk 0:02:27.7]} 12. Rc1 {[%clk 0:02:08]} 12... f6 {[%clk
0:02:22.4]} 13. Bf4 {[%clk 0:01:56.9]} 13... g5 {[%clk 0:02:22.1]} 14. Na4
{[%clk 0:01:35.3]} 14... Nxa4 {[%clk 0:02:12.7]} 15. Qxa4+ {[%clk 0:01:36.1]}
15... Bd7 {[%clk 0:02:12.6]} 16. Qb3 {[%clk 0:01:28.6]} 16... Qa5+ {[%clk
0:02:13.1]} 0-1